bitfinex/quotes_ETHUSD_20260119
["timestamp","ask_amount","ask_price","bid_price","bid_amount"]
[1768784637715,3.63719177,3213.1,3212.2,12.79299629]
[1768784637716,0.03890323,3213.1,3212.2,12.79299629]
[1768784637919,3.15077018,3213.5,3212.2,12.79299629]
[1768784638129,0.486,3213.4,3212.4,12.79299629]
[1768784638830,0.486,3213.4,3212.4,13.26799629]
[1768784639738,3.11155821,3213.9,3212.6,12.79299629]
[1768784639936,12.85927352,3213.7,3212.5,3.11284046]
[1768784640136,12.8981707,3213.6,3212.5,3.11284046]
[1768784640347,12.85927352,3213.6,3212.6,0.35878405]
[1768784640713,12.85927352,3213.6,3212.4,3.587935]
[1768784640912,0.001,3212.5,3212.4,0.475]
[1768784641448,0.001,3212.5,3212.4,3.58793736]
[1768784641743,0.001,3212.5,3212.4,0.475]
[1768784642043,0.001,3212.5,3212.4,3.58793736]
[1768784642457,0.001,3212.5,3212.4,0.475]
[1768784642957,0.486,3213.3,3212.5,12.79299629]
[1768784643157,10.3614335,3214.6,3212.5,12.79299629]
[1768784643158,15.97056439,3214.1,3212.5,12.79299629]
[1768784643337,0.486,3214.0,3212.5,12.79299629]
[1768784643720,15.97056439,3214.1,3212.7,12.79299629]
[1768784643923,0.486,3214.0,3212.9,12.79299629]
[1768784644355,0.486,3214.0,3212.9,13.26799629]
[1768784644722,3.11125275,3214.2,3212.9,13.26799629]
[1768784644925,0.486,3214.1,3212.9,13.26799629]
[1768784645124,3.59716431,3214.3,3212.9,13.26799629]
[1768784645354,0.486,3214.3,3213.1,12.79299629]
[1768784645538,0.486,3214.6,3213.1,12.79299629]
[1768784646064,3.14963683,3214.7,3213.0,1.37137308]
[1768784646065,0.486,3214.7,3213.3,12.79299629]
[1768784646226,3.1104199,3215.0,3213.5,12.79299629]
[1768784646227,6.2208398,3215.0,3213.5,12.79299629]
[1768784646428,0.486,3214.9,3213.5,12.79299629]
[1768784646750,1.15668398,3214.8,3213.7,12.79299629]
[1768784647260,1.15668398,3214.8,3213.9,12.79299629]
[1768784647261,0.67068398,3214.8,3213.9,12.79299629]
[1768784647468,0.486,3215.0,3213.9,12.79299629]
[1768784647772,12.85927352,3215.6,3213.8,0.475]
[1768784647941,12.85927352,3215.4,3213.9,12.79299629]
[1768784648140,0.52487662,3215.3,3213.9,12.79299629]
[1768784648390,15.30567578,3215.3,3213.8,3.1115813]
[1768784648613,15.30567578,3215.3,3213.8,6.2231626]
[1768784649280,15.30567578,3215.3,3213.8,3.1115813]
[1768784649482,15.30567578,3215.3,3213.8,6.2231626]
[1768784649652,1.96040226,3215.3,3213.9,12.79299629]
[1768784649862,0.128,3215.9,3213.8,9.3347439]
[1768784649863,6.21929224,3215.8,3214.3,12.79299629]
[1768784650159,0.486,3215.6,3214.3,13.26799629]
[1768784651148,12.8981453,3215.7,3214.3,13.26799629]
[1768784651453,0.486,3215.6,3214.3,13.26799629]
[1768784651655,3.10964612,3215.8,3214.5,12.79299629]
[1768784651656,0.486,3215.7,3214.5,12.79299629]
[1768784651856,0.001,3216.2,3214.7,12.79299629]
[1768784652053,0.001,3216.2,3214.6,6.22161388]
[1768784652054,0.486,3216.1,3214.9,12.79299629]
[1768784652247,0.03886815,3216.0,3214.9,12.79299629]
[1768784652578,12.89814167,3216.0,3214.8,0.475]
[1768784652750,14.19768769,3215.9,3214.8,0.475]
[1768784652956,0.001,3215.3,3214.8,0.475]
[1768784653867,0.001,3215.3,3214.9,3.11051665]
[1768784654447,0.001,3215.3,3213.6,12.79299629]
[1768784654448,12.85927352,3215.2,3213.6,12.79299629]
[1768784654667,0.03887903,3215.1,3214.0,15.90436902]
[1768784654900,0.03887903,3215.1,3214.0,16.37936902]
[1768784655180,12.89815255,3215.1,3214.0,0.475]
[1768784655374,12.85927352,3215.1,3214.0,0.475]
[1768784655682,1.46799009,3215.0,3214.0,0.475]
[1768784655841,6.22122682,3214.8,3214.0,0.475]
[1768784656246,12.89815739,3214.7,3214.0,0.475]
[1768784656566,12.85927352,3214.7,3214.0,1e-08]
[1768784656882,12.85927352,3214.7,3213.5,0.475]
[1768784657298,12.85927352,3214.5,3212.8,15.90548621]
[1768784657463,0.486,3214.6,3212.4,12.79299629]
[1768784657464,12.85927352,3214.3,3212.4,12.79299629]
[1768784657781,12.85927352,3214.3,3212.7,3.11261694]
[1768784657979,1.33452735,3214.4,3212.6,3.11274357]
[1768784657980,12.85927352,3214.1,3212.6,3.11274357]
[1768784658276,12.85927352,3213.9,3212.5,0.475]
[1768784658446,12.85927352,3213.7,3212.5,0.475]
[1768784658645,12.85927352,3213.5,3212.5,0.475]
[1768784659856,12.85927352,3213.5,3212.5,3.58782085]
[1768784659857,3.11187179,3213.5,3212.5,3.58782085]
[1768784660061,3.11187179,3213.5,3212.5,6.70066131]
[1768784660484,3.11178248,3213.6,3212.5,6.70066131]
[1768784660650,12.85927352,3213.9,3212.6,12.79299629]
[1768784660849,3.11034226,3215.1,3212.6,12.79299629]
[1768784660850,19.08146808,3214.3,3212.6,12.79299629]
[1768784661484,3.11109728,3214.3,3212.6,12.79299629]
[1768784661687,12.85927352,3214.7,3212.6,12.79299629]
[1768784661863,6.26049896,3214.6,3212.7,9.33794004]
[1768784662057,6.26049896,3214.6,3212.8,12.80857163]
[1768784662404,8.17247621,3214.6,3213.0,12.79299629]
[1768784662580,8.13359113,3214.6,3213.1,12.40707895]
[1768784662781,0.03888629,3214.5,3213.1,12.40707895]
[1768784663080,12.99260125,3214.5,3213.1,12.40707895]
[1768784663286,12.95371496,3214.5,3213.1,12.40707895]
[1768784663579,2.14761811,3214.4,3213.2,13.17178685]
[1768784663984,6.22219456,3214.3,3213.3,3.11206547]
[1768784664363,6.26108327,3214.3,3213.3,3.11206547]
[1768784664682,6.26108327,3214.3,3213.3,3.11406547]
[1768784664988,6.26208327,3214.3,3213.3,3.11406547]
[1768784665189,2.17234159,3214.3,3213.4,11.93107895]
[1768784665378,0.001,3214.3,3213.4,11.93107895]
[1768784665568,3.06181345,3214.6,3213.4,11.93107895]
[1768784665768,3.11074951,3214.7,3213.4,11.93107895]
[1768784665969,0.03888266,3214.8,3213.6,11.93107895]
[1768784666278,0.03888266,3214.8,3213.5,6.22374358]
[1768784666279,12.95371496,3214.8,3213.7,1.31912054]
[1768784666479,12.95371496,3214.6,3213.7,0.476]
[1768784666677,12.99260125,3214.5,3213.7,0.476]
[1768784666863,12.95371496,3214.5,3213.7,0.476]
[1768784667878,13.47860246,3214.4,3213.3,0.002]
[1768784668084,12.95371496,3214.2,3213.3,0.002]
[1768784668280,2.26759181,3214.1,3213.3,0.002]
[1768784668487,6.22219456,3214.3,3213.3,11.93307895]
[1768784668488,3.11109728,3214.3,3213.3,11.93307895]
[1768784669167,3.14998599,3214.3,3213.3,11.93307895]
[1768784669369,6.22219456,3214.3,3213.3,11.93307895]
[1768784669911,6.22219456,3214.3,3213.3,0.002]
[1768784670099,19.21479823,3214.3,3213.3,0.002]
[1768784670285,2.2325838,3214.2,3213.3,0.002]
[1768784670483,0.03889113,3214.1,3213.3,0.002]
[1768784671068,3.11109728,3214.3,3213.3,0.002]
[1768784671307,0.486,3214.6,3213.3,11.93307895]
[1768784671465,0.03888508,3214.6,3213.3,11.93307895]
[1768784671795,6.25972004,3215.0,3213.5,11.93107895]
[1768784672202,6.25972004,3215.0,3213.6,18.15462885]
[1768784672497,6.25972004,3215.0,3213.7,12.40707895]
[1768784673930,6.25972004,3215.0,3213.7,0.476]
[1768784673931,12.95371496,3214.9,3213.7,0.476]
[1768784674224,3.11080694,3214.6,3213.7,0.476]
[1768784674383,0.03888629,3214.5,3213.8,3.1115813]
[1768784674813,0.03888629,3214.5,3213.7,3.58765299]
[1768784674994,0.03888629,3214.5,3213.7,0.476]
[1768784675196,0.03888629,3214.5,3213.3,11.93307895]
[1768784675197,12.99260125,3214.5,3213.3,0.002]
[1768784675492,12.95371496,3214.3,3213.4,0.476]
[1768784675716,12.95371496,3214.1,3213.4,0.476]
[1768784675904,0.03889234,3214.0,3213.4,0.476]
[1768784676199,12.95371496,3214.1,3213.4,0.476]
[1768784676514,0.486,3214.7,3213.2,0.476]
[1768784676515,22.32677031,3214.0,3213.2,0.476]
[1768784676722,2.23267703,3213.9,3213.2,0.476]
[1768784676923,2.23267703,3213.9,3213.3,0.002]
[1768784678020,2.27157058,3213.9,3213.3,0.002]
[1768784678392,3.1115813,3213.8,3213.3,0.002]
[1768784679225,5.38306696,3213.9,3213.3,0.002]
[1768784679226,5.34418386,3213.9,3213.3,0.002]
[1768784679399,11.78989769,3214.7,3213.3,12.20535294]
[1768784679602,7.43948873,3214.6,3213.3,12.20535294]
[1768784679948,10.51141059,3214.6,3213.3,12.20535294]
[1768784680334,11.78889769,3214.5,3213.3,0.002]
[1768784680529,11.78889769,3214.2,3213.4,0.476]
[1768784680830,9.33329184,3214.3,3213.4,0.476]
[1768784680831,11.82778882,3214.1,3213.4,0.476]
[1768784680985,11.82778882,3214.1,3213.3,0.002]
[1768784680986,1.18277888,3214.0,3213.3,0.002]
[1768784681191,0.03889355,3213.9,3213.3,0.002]
[1768784682933,3.15043184,3213.9,3213.3,0.002]
[1768784683139,0.03889355,3213.9,3213.3,0.002]
[1768784683337,0.03889234,3214.0,3213.3,0.002]
[1768784683712,0.03888871,3214.3,3213.3,12.87558375]
[1768784683916,0.03888629,3214.5,3213.3,12.87558375]
[1768784684949,0.03888629,3214.5,3213.4,6.22393726]
[1768784685130,0.03888629,3214.5,3213.5,12.20335294]
[1768784685940,4.28981887,3214.6,3213.5,12.20335294]
[1768784686106,11.82778398,3214.5,3213.5,1.48824019]
[1768784686298,11.78889769,3214.5,3213.6,0.476]
[1768784686497,7.40064797,3214.6,3213.6,0.476]
[1768784686498,11.82778519,3214.4,3213.6,0.476]
[1768784686725,11.78889769,3214.4,3213.6,0.476]
[1768784686919,0.03888871,3214.3,3213.6,0.476]
[1768784687123,4.29397878,3214.2,3213.6,0.476]
[1768784687326,0.03889113,3214.1,3213.6,0.476]
[1768784687537,1.18277864,3214.2,3213.6,0.476]
[1768784687735,0.03889113,3214.1,3213.6,0.476]
[1768784688539,4.29398948,3214.2,3213.6,0.476]
[1768784688540,1.18277864,3214.2,3213.6,0.476]
[1768784688839,0.03889113,3214.1,3213.6,0.476]
[1768784689051,0.78329821,3214.1,3213.6,0.476]
[1768784689411,0.74440708,3214.1,3213.6,0.476]
[1768784689727,1.22266856,3214.2,3213.3,3.11398246]
[1768784689948,3.11129087,3214.1,3213.4,0.476]
[1768784690133,0.03889234,3214.0,3213.4,0.476]
[1768784691151,0.03889234,3214.0,3213.4,3.58791467]
[1768784691349,0.03889113,3214.1,3213.4,3.53791467]
[1768784691538,16.0839158,3214.2,3213.4,3.53791467]
[1768784691733,1.60839158,3214.1,3213.4,6.6498833]
[1768784691943,1.18377864,3214.2,3213.4,6.6498833]
[1768784691944,0.001,3214.7,3213.5,12.20335294]
[1768784693340,0.001,3214.7,3213.7,11.95124877]
[1768784693761,3.11114867,3215.3,3213.7,11.95124877]
[1768784693968,0.001,3215.3,3213.7,11.95124877]
[1768784694649,3.10935605,3216.1,3213.9,11.95124877]
[1768784694826,3.10935605,3216.1,3213.6,15.55887475]
[1768784694827,0.03886815,3216.0,3214.1,11.95124877]
[1768784695542,12.36635975,3215.9,3214.3,11.95124877]
[1768784695715,0.03887057,3215.8,3214.3,11.95124877]
[1768784696671,3.11029081,3216.2,3214.3,11.95124877]
[1768784696840,0.001,3216.2,3214.3,11.95124877]
[1768784697044,0.001,3216.2,3214.2,3.11119407]
[1768784697045,12.85235975,3216.1,3214.2,3.11119407]
[1768784697259,12.36635975,3215.9,3214.3,0.476]
[1768784697453,12.36635975,3215.7,3214.3,3.58709074]
[1768784697774,12.36635975,3215.7,3213.9,11.95124877]
[1768784697775,12.36635975,3215.5,3214.4,0.476]
[1768784698077,12.36635975,3215.3,3214.1,0.476]
[1768784698286,12.36635975,3215.1,3213.4,11.95124877]
[1768784698427,0.128,3215.5,3213.5,0.476]
[1768784698428,12.36635975,3214.9,3213.5,0.476]
[1768784698621,12.36635975,3214.9,3213.7,3.11159046]
[1768784698622,0.03888266,3214.8,3213.7,3.11159046]
[1768784698936,0.128,3215.5,3213.7,13.50513269]
[1768784698937,1.24052424,3214.7,3213.7,13.50513269]
[1768784699251,0.03888508,3214.6,3213.7,1.55388392]
[1768784699455,3.11061341,3214.8,3213.8,0.476]
[1768784699858,0.03888387,3214.7,3213.8,0.476]
[1768784700040,0.03888387,3214.7,3213.7,3.11163316]
[1768784700041,0.03888387,3214.7,3213.9,0.476]
[1768784700429,12.40524362,3214.7,3213.9,0.476]
[1768784700626,12.36635975,3214.7,3213.9,0.476]
[1768784700826,1.85875866,3214.6,3213.9,0.476]
[1768784701227,1.89764374,3214.6,3213.9,0.476]
[1768784701463,12.36635975,3215.3,3214.0,11.95124877]
[1768784701629,0.001,3215.5,3214.0,11.95124877]
[1768784701630,3.11003296,3215.4,3214.0,11.95124877]
[1768784701828,0.03887662,3215.3,3214.0,11.95124877]
[1768784702048,3.14890837,3215.4,3214.0,11.95124877]
[1768784702535,15.51526812,3215.4,3214.0,11.95124877]
[1768784702867,13.91798656,3215.3,3214.1,0.476]
[1768784703053,12.40523758,3215.2,3214.1,0.476]
[1768784703255,0.03887903,3215.1,3214.1,0.476]
[1768784703567,3.1104199,3215.0,3214.1,3.587285]
[1768784703886,15.47659066,3215.2,3214.2,0.01555114]
[1768784704053,1.39179866,3215.1,3214.1,21.76111551]
[1768784704241,12.36635975,3215.9,3214.4,11.95124877]
[1768784704442,3.10967042,3215.8,3214.4,11.95124877]
[1768784704652,3.10964689,3215.8,3214.4,11.95124877]
[1768784704847,3.10956359,3215.9,3214.4,11.95124877]
[1768784705160,15.47729617,3215.5,3214.2,11.95124877]
[1768784705361,12.40523516,3215.4,3214.3,0.476]
[1768784705563,4.97274049,3215.3,3214.4,3.11100049]
[1768784705769,0.03887783,3215.2,3214.4,3.11100049]
[1768784706131,0.001,3215.5,3214.5,11.95124877]
[1768784706459,0.001,3215.5,3214.4,6.22200098]
[1768784706768,18.58729602,3215.5,3214.5,0.476]
[1768784706930,14.26396476,3215.4,3214.5,0.476]
[1768784707130,14.22508935,3215.4,3214.5,0.476]
[1768784707327,0.001,3215.5,3214.5,12.42724877]
[1768784707552,0.001,3215.5,3214.7,11.95124877]
[1768784707945,0.001,3215.5,3214.8,0.476]
[1768784708464,0.001,3215.5,3214.7,11.95124877]
[1768784708465,0.001,3215.5,3214.9,0.476]
[1768784709231,0.001,3215.5,3215.0,0.476]
[1768784709647,0.001,3215.5,3215.1,0.476]
[1768784710472,0.001,3215.5,3214.6,11.95124877]
[1768784710473,0.001,3215.5,3215.2,0.477]
[1768784710852,0.001,3215.5,3215.3,0.477]
[1768784712052,0.001,3215.5,3214.8,15.06185691]
[1768784712258,0.001,3215.5,3214.4,11.95124877]
[1768784712498,0.001,3215.5,3214.5,0.477]
[1768784712499,13.60409573,3215.5,3214.5,0.477]
[1768784713071,13.60409573,3215.5,3214.4,11.95124877]
[1768784713376,13.60409573,3215.5,3215.0,0.002]
[1768784713684,13.60409573,3215.5,3214.6,0.479]
[1768784713685,12.36635975,3215.3,3214.6,0.479]
[1768784713985,0.03887783,3215.2,3214.6,0.479]
[1768784714177,1.24052376,3215.1,3214.6,0.479]
[1768784714779,1.24052376,3215.1,3214.6,0.002]
[1768784715093,12.40523999,3215.0,3214.4,0.477]
[1768784715296,12.36635975,3215.0,3214.2,0.477]
[1768784715807,18.58739305,3214.9,3214.2,0.477]
[1768784715993,1.8587393,3214.8,3214.2,0.477]
[1768784716697,14.22509905,3214.8,3213.8,0.002]
[1768784716897,14.22509905,3214.8,3214.1,0.477]
[1768784717789,18.58778009,3214.7,3214.1,0.477]
[1768784718717,4.3508895,3215.1,3214.2,11.96680281]
[1768784718864,3.11036574,3215.1,3214.2,11.95124877]
[1768784719065,12.36635975,3215.3,3214.2,11.95124877]
[1768784719066,15.47653306,3215.3,3214.2,11.95124877]
[1768784719286,0.03887783,3215.2,3214.2,11.95124877]
[1768784719802,6.22064632,3215.1,3214.3,0.477]
[1768784719970,0.03888024,3215.0,3214.3,0.477]
[1768784720292,0.62595266,3214.9,3214.3,0.477]
[1768784720861,0.62595266,3214.9,3214.4,0.477]
[1768784720862,0.03888266,3214.8,3214.4,0.477]
[1768784721063,0.03888266,3214.8,3214.1,0.477]
[1768784721064,12.40524241,3214.8,3214.1,0.477]
[1768784721311,12.36635975,3214.8,3214.1,0.477]
[1768784721805,6.22142034,3214.7,3214.1,0.477]
[1768784722009,1.85877801,3214.6,3214.1,0.477]
[1768784722875,14.55496431,3214.6,3213.8,0.002]
[1768784723284,1.85877801,3214.6,3213.8,0.479]
[1768784723485,0.03888508,3214.6,3213.8,0.479]
[1768784723667,0.03888508,3214.6,3213.8,3.59056591]
[1768784723876,6.22142034,3214.7,3213.8,3.59056591]
[1768784724376,6.22142034,3214.7,3213.8,0.479]
[1768784724705,12.73507138,3214.6,3213.8,0.479]
[1768784724912,3.11063996,3214.8,3213.8,16.52384816]
[1768784725204,3.11063996,3214.8,3213.9,12.93326937]
[1768784725404,0.001,3214.3,3213.9,12.93326937]
[1768784726206,0.001,3214.3,3213.8,0.479]
[1768784726405,0.001,3214.3,3213.8,3.59057897]
[1768784726709,0.001,3214.3,3213.8,0.479]
[1768784727107,0.001,3214.3,3213.8,0.002]
[1768784727276,0.001,3214.3,3213.9,0.477]
[1768784727476,0.62595266,3214.9,3213.9,13.41026937]
[1768784728209,3.11063474,3214.8,3213.9,19.63322987]
[1768784728385,3.11043749,3215.0,3214.0,12.94882535]
[1768784728720,3.10987192,3215.6,3214.0,12.94882535]
[1768784728721,3.11095884,3215.5,3214.0,12.93326937]
[1768784728884,0.03887541,3215.4,3214.2,12.93326937]
[1768784729207,6.22091768,3215.5,3214.4,12.93326937]
[1768784729208,3.11095884,3215.5,3214.4,12.93326937]
[1768784729390,0.001,3215.5,3214.4,12.93326937]
[1768784730281,0.001,3215.5,3214.6,12.93326937]
[1768784731002,0.0398742,3215.5,3214.6,12.93326937]
[1768784731309,0.001,3215.5,3214.6,12.93326937]
[1768784731513,0.001,3215.5,3214.7,0.86358929]
[1768784731690,0.001,3215.5,3214.8,0.477]
[1768784734235,0.001,3215.5,3214.9,0.477]
[1768784734236,12.7360605,3215.5,3214.9,0.477]
[1768784734517,15.80713002,3215.5,3214.9,0.477]
[1768784734811,0.001,3215.5,3214.9,0.477]
[1768784734979,0.001,3215.5,3214.9,3.58748204]
[1768784735185,0.001,3215.5,3214.9,3.58751252]
[1768784735493,0.001,3215.5,3214.9,13.41026937]
[1768784735688,0.001,3215.5,3215.0,12.93326937]
[1768784736307,0.001,3216.2,3215.1,12.93326937]
[1768784736501,3.10936976,3216.1,3215.2,3.11022642]
[1768784736812,12.73505445,3216.0,3215.1,3.11028239]
[1768784737008,12.73505445,3216.0,3215.2,0.477]
[1768784737009,12.6961863,3216.0,3215.2,0.477]
[1768784737381,3.94228347,3216.1,3215.2,13.41026937]
[1768784737583,0.03886815,3216.0,3215.2,13.41026937]
[1768784738117,2.01763892,3216.0,3215.2,13.41026937]
[1768784738718,3.10954942,3215.9,3215.2,16.52045273]
[1768784738880,17.99330598,3215.9,3214.5,12.39367904]
[1768784739088,11.81307771,3215.8,3214.7,15.50430058]
[1768784739416,11.81307771,3215.8,3214.8,3.11060637]
[1768784739417,11.81307892,3215.7,3214.8,3.11060637]
[1768784739606,11.77420714,3215.7,3214.8,3.58760637]
[1768784739788,2.00109449,3215.8,3214.9,12.39367904]
[1768784739987,3.14834199,3216.0,3215.3,12.39367904]
[1768784740188,6.25781583,3216.0,3215.4,0.477]
[1768784740490,0.83292742,3216.1,3215.4,0.477]
[1768784740491,3.94231352,3216.1,3215.4,0.477]
[1768784740803,3.94231352,3216.1,3215.4,3.58699451]
[1768784740999,18.82590676,3216.1,3215.4,0.477]
[1768784741199,1.92155883,3216.0,3215.4,0.477]
[1768784741607,13.69576597,3216.0,3215.4,0.477]
[1768784741810,13.65399782,3216.0,3215.0,12.39367904]
[1768784742127,0.001,3216.2,3215.5,12.39367904]
[1768784742322,3.10935605,3216.1,3215.5,12.39367904]
[1768784742494,3.11027385,3216.2,3215.5,12.39367904]
[1768784742697,0.001,3216.2,3215.5,15.50353287]
[1768784742895,11.77520714,3216.2,3215.2,12.39367904]
[1768784743092,12.9905948,3216.1,3215.3,0.477]
[1768784743392,12.95172785,3216.1,3215.3,3.5871001]
[1768784743591,12.95172785,3216.1,3215.3,0.477]
[1768784743791,12.95172785,3216.1,3215.3,3.58712485]
[1768784744043,0.001,3216.2,3215.4,12.39367904]
[1768784744194,0.03986574,3216.2,3215.5,15.50361321]
[1768784744395,0.001,3216.2,3215.6,12.39367904]
[1768784744609,0.001,3216.2,3215.7,0.477]
[1768784744803,0.001,3216.2,3215.8,12.39367904]
[1768784745008,0.001,3216.2,3215.7,0.477]
[1768784745207,0.001,3216.2,3215.7,12.87067904]
[1768784745408,0.001,3216.2,3215.7,17.26748802]
[1768784745605,0.001,3216.2,3215.8,12.39367904]
[1768784746011,0.001,3216.5,3215.8,12.39367904]
[1768784746208,0.001,3216.5,3215.1,3.11028357]
[1768784746430,0.001,3216.5,3215.0,12.87067904]
[1768784746431,11.77420714,3216.4,3215.0,12.87067904]
[1768784746616,0.488,3216.5,3215.0,12.87067904]
[1768784746617,11.77420714,3216.2,3215.0,12.87067904]
[1768784746817,17.99330598,3215.9,3215.0,0.477]
[1768784747004,17.99330598,3215.9,3215.1,0.477]
[1768784747005,13.61240831,3215.8,3215.1,0.477]
[1768784747344,0.001,3216.5,3215.2,12.91789223]
[1768784747563,0.001,3216.5,3215.2,12.88678997]
[1768784747700,0.001,3216.5,3215.4,12.39367904]
[1768784747900,0.001,3216.5,3215.6,12.39367904]
[1768784748124,0.001,3216.5,3215.8,12.39367904]
[1768784748534,3.10999562,3216.5,3215.8,12.39367904]
[1768784749144,0.001,3216.5,3215.8,12.39367904]
[1768784749533,0.02335136,3216.8,3215.8,15.50331242]
[1768784750134,0.02335136,3216.8,3215.8,15.50331806]
[1768784750341,1.82482377,3216.8,3215.8,15.50331806]
[1768784750527,1.82482377,3216.8,3215.8,12.39367904]
[1768784750915,11.77420714,3217.5,3215.8,12.39367904]
[1768784751107,11.77420714,3217.5,3215.7,1.24247784]
[1768784751108,6.2160062,3217.5,3216.1,12.39367904]
[1768784751305,17.99021334,3217.5,3216.1,12.39367904]
[1768784751621,17.99021334,3217.5,3216.1,12.88678997]
[1768784752206,11.77420714,3217.4,3216.1,12.39367904]
[1768784752406,2.10982164,3217.3,3216.2,13.1750521]
[1768784752734,2.10982164,3217.3,3216.3,0.477]
[1768784752935,2.10982164,3217.3,3215.9,12.89224888]
[1768784752936,14.63875972,3217.3,3215.9,12.89224888]
[1768784753235,14.63875972,3217.3,3216.0,0.477]
[1768784753236,12.52893808,3217.1,3216.0,0.477]
[1768784753447,9.32487876,3217.2,3216.1,12.89224888]
[1768784753448,6.21658584,3217.2,3216.1,12.89224888]
[1768784753735,7.04922659,3217.2,3216.1,14.22917377]
[1768784754650,22.68645759,3217.2,3216.1,14.22917377]
[1768784754949,19.57816467,3217.2,3216.1,14.22917377]
[1768784755133,3.94093367,3217.2,3216.3,12.89224888]
[1768784755305,3.10829292,3217.2,3216.3,12.89224888]
[1768784755815,3.59512328,3217.4,3216.5,12.89224888]
[1768784756034,3.10803031,3217.5,3216.5,12.89224888]
[1768784756950,3.59593651,3217.6,3216.5,12.89224888]
[1768784757132,3.59593651,3217.6,3216.4,0.477]
[1768784757133,0.488,3217.6,3216.7,12.89224888]
[1768784757333,3.59591308,3217.6,3216.7,13.57917489]
[1768784757943,0.488,3217.6,3216.7,13.57917489]
[1768784758240,0.488,3217.6,3216.9,12.89224888]
[1768784758446,3.59592174,3217.6,3216.9,12.89224888]
[1768784759046,6.70384348,3217.6,3216.7,0.68692601]
[1768784759346,6.70384348,3217.6,3216.8,0.477]
[1768784759347,0.67037325,3217.5,3216.8,0.477]
[1768784759514,0.67037325,3217.5,3215.8,12.89224888]
[1768784759515,13.19931133,3217.5,3215.8,12.89224888]
[1768784759708,13.19931133,3217.5,3216.1,12.89224888]
[1768784759910,12.52893808,3217.3,3215.8,3.10958704]
[1768784760160,2.30110766,3217.4,3215.9,12.89224888]
[1768784760161,12.52893808,3217.1,3215.9,12.89224888]
[1768784760952,12.52893808,3217.1,3215.9,16.00175719]
[1768784761256,12.52893808,3217.1,3215.9,16.00178467]
[1768784761614,0.487,3217.2,3216.0,12.89224888]
[1768784761937,6.70359918,3217.2,3216.2,12.89424888]
[1768784762122,0.001,3217.0,3216.2,12.89424888]
[1768784762731,0.001,3217.0,3216.2,13.86435981]
[1768784762971,0.001,3217.0,3216.2,13.37124888]
[1768784763230,3.10808692,3217.5,3216.5,12.89224888]
[1768784763455,3.10783502,3217.7,3216.7,12.89224888]
[1768784764775,3.10762397,3217.9,3216.9,12.89224888]
[1768784764776,3.10761676,3217.9,3216.9,12.89224888]
[1768784765085,3.10761676,3217.9,3217.1,12.89224888]
[1768784765636,3.10761676,3217.9,3217.1,16.00062223]
[1768784765990,3.10684437,3218.7,3217.2,12.89224888]
[1768784766277,0.487,3218.4,3217.2,13.38535981]
[1768784766585,0.487,3218.4,3217.2,12.89224888]
[1768784767129,3.10723052,3218.3,3217.3,3.10819631]
[1768784767361,3.59414335,3218.4,3217.4,13.36924888]
[1768784767561,0.487,3218.4,3217.4,13.36924888]
[1768784768786,3.10691035,3218.7,3217.4,13.86235981]
[1768784769279,6.2138207,3218.7,3217.6,12.89224888]
[1768784769446,3.10691035,3218.7,3217.6,12.89224888]
[1768784770154,3.10677647,3218.8,3217.6,12.89224888]
[1768784770786,3.59365762,3218.9,3217.6,12.89224888]
[1768784771073,3.59365762,3218.9,3217.8,12.89224888]
[1768784771275,3.59365762,3218.9,3218.0,12.89224888]
[1768784772255,3.59366374,3218.9,3218.0,12.89224888]
[1768784772744,6.70032748,3218.9,3218.0,12.89224888]
[1768784772945,19.89929831,3218.9,3217.7,12.89224888]
[1768784773152,19.89929831,3218.9,3217.8,13.36924888]
[1768784773445,19.89929831,3218.9,3217.9,12.89224888]
[1768784773653,7.37036023,3218.9,3217.9,12.89224888]
[1768784773864,7.37036023,3218.9,3217.8,3.58469547]
[1768784773865,7.37036023,3218.9,3218.1,12.89224888]
[1768784774239,4.26369649,3218.9,3218.1,12.89224888]
[1768784774438,3.59366374,3218.9,3218.1,12.89224888]
[1768784774651,0.001,3218.6,3218.1,12.89224888]
[1768784774868,0.001,3218.6,3218.0,1.64769444]
[1768784775185,0.001,3218.6,3217.5,12.89224888]
[1768784775186,12.52993808,3218.6,3217.5,12.89224888]
[1768784775371,12.52993808,3218.6,3216.2,10.35410233]
[1768784775372,18.74320602,3218.4,3217.4,0.477]
[1768784775573,12.52893808,3218.3,3217.4,0.477]
[1768784776175,6.21426794,3218.4,3217.4,16.47730621]
[1768784776555,1.73999381,3218.5,3217.6,12.89224888]
[1768784776888,0.487,3218.5,3217.8,12.89224888]
[1768784777196,3.59411741,3218.5,3217.8,12.89224888]
[1768784777395,6.21446104,3218.3,3217.4,0.477]
[1768784777575,12.52893808,3218.4,3217.4,13.36924888]
[1768784777576,3.1071594,3218.4,3217.4,13.36924888]
[1768784777745,0.488,3218.6,3217.6,12.89224888]
[1768784778096,0.001,3218.6,3217.6,12.89224888]
[1768784778607,0.001,3218.6,3217.6,13.38535981]
[1768784778888,0.487,3219.3,3217.8,12.89224888]
[1768784779077,0.487,3219.3,3218.0,12.89224888]
[1768784779251,0.487,3219.3,3218.2,12.89224888]
[1768784779454,6.21272364,3219.2,3218.4,12.89224888]
[1768784779658,3.10636182,3219.2,3218.4,12.89224888]
[1768784780193,6.21272364,3219.2,3218.4,12.89224888]
[1768784780578,3.10636182,3219.2,3218.4,12.89224888]
[1768784780778,6.21272364,3219.2,3218.4,12.89224888]
[1768784780981,0.487,3219.4,3218.4,14.22917377]
[1768784781493,3.10626533,3219.3,3218.5,12.89224888]
[1768784781704,3.59321082,3219.4,3218.5,12.89224888]
[1768784781705,3.59320565,3219.4,3218.5,12.89224888]
[1768784782015,6.6994113,3219.4,3218.5,12.89224888]
[1768784782187,6.6994113,3219.4,3218.5,13.57917489]
[1768784782885,11.80085212,3219.3,3218.2,0.477]
[1768784783093,11.80085212,3219.3,3218.2,16.52277554]
[1768784783292,11.80085212,3219.3,3218.2,13.4155125]
[1768784783589,11.80085212,3219.3,3218.2,16.52280767]
[1768784783590,3.10636182,3219.2,3218.2,16.52280767]
[1768784783784,3.10636182,3219.2,3218.3,12.9385125]
[1768784783785,6.21272364,3219.2,3218.3,12.9385125]